[Event "Titled Tuesday Blitz August 22 Early 2023"]
[White "Juicy_Fork"]
[Black "Yeritsyan, Hayk"]
[BlackFideId "13307320"]
[WhiteElo "2305"]
[BlackElo "2461"]
[Result "1-0"]
[Round "6"]
[TimeControl "180+1"]
[Date "2023.08.22"]
[WhiteClock "0:01:02"]
[BlackClock "0:00:04"]
[Board "163"]

1. e4 {[%clk 0:03:00]}  e5 {[%clk 0:01:14]} 2. Nf3 {[%clk 0:03:00]}  d6 {[%clk 0:01:13]} 3. d4 {[%clk 0:02:59]}  exd4 {[%clk 0:01:01]} 4. Nxd4 {[%clk 0:03:00]}  Nf6 {[%clk 0:00:57]} 5. Nc3 {[%clk 0:03:00]}  Be7 {[%clk 0:00:46]} 6. Bd3 {[%clk 0:03:00]}  O-O {[%clk 0:00:46]} 7. O-O {[%clk 0:03:00]}  Nc6 {[%clk 0:00:47]} 8. Nxc6 {[%clk 0:02:53]}  bxc6 {[%clk 0:00:47]} 9. h3 {[%clk 0:02:53]}  Rb8 {[%clk 0:00:46]} 10. b3 {[%clk 0:02:53]}  Nd7 {[%clk 0:00:45]} 11. Bb2 {[%clk 0:02:51]}  Bf6 {[%clk 0:00:32]} 12. f4 {[%clk 0:02:45]}  Re8 {[%clk 0:00:30]} 13. Qf3 {[%clk 0:02:43]}  Nc5 {[%clk 0:00:30]} 14. Rad1 {[%clk 0:02:39]}  a5 {[%clk 0:00:30]} 15. a4 {[%clk 0:02:38]}  Ba6 {[%clk 0:00:30]} 16. Bxa6 {[%clk 0:02:37]}  Nxa6 {[%clk 0:00:31]} 17. e5 {[%clk 0:02:37]}  Be7 {[%clk 0:00:30]} 18. Qxc6 {[%clk 0:02:34]}  Nb4 {[%clk 0:00:30]} 19. Qe4 {[%clk 0:02:35]}  Qc8 {[%clk 0:00:28]} 20. Nd5 {[%clk 0:02:29]}  dxe5 {[%clk 0:00:26]} 21. fxe5 {[%clk 0:02:01]}  Qe6 {[%clk 0:00:24]} 22. Kh1 {[%clk 0:01:55]}  Nxd5 {[%clk 0:00:17]} 23. Rxd5 {[%clk 0:01:56]}  Rb4 {[%clk 0:00:17]} 24. Qf3 {[%clk 0:01:50]}  Rh4 {[%clk 0:00:14]} 25. Rxa5 {[%clk 0:01:46]}  Rb8 {[%clk 0:00:13]} 26. Ra8 {[%clk 0:01:41]}  Rxa8 {[%clk 0:00:11]} 27. Qxa8+ {[%clk 0:01:42]}  Bf8 {[%clk 0:00:11]} 28. Ba3 {[%clk 0:01:27]}  Rxh3+ {[%clk 0:00:11]} 29. Kg1 {[%clk 0:01:28]}  Qb6+ {[%clk 0:00:11]} 30. Rf2 {[%clk 0:01:25]}  c5 {[%clk 0:00:06]} 31. gxh3 {[%clk 0:01:25]}  h5 {[%clk 0:00:05]} 32. e6 {[%clk 0:01:21]}  Qxe6 {[%clk 0:00:05]} 33. Bxc5 {[%clk 0:01:12]}  Qxh3 {[%clk 0:00:05]} 34. Qxf8+ {[%clk 0:01:10]}  Kh7 {[%clk 0:00:05]} 35. Rg2 {[%clk 0:01:07]}  Qc3 {[%clk 0:00:06]} 36. Rxg7+ {[%clk 0:01:02]}  Kh6 {[%clk 0:00:04]} 37. Qh8# {[%clk 0:01:02]} 1-0


[Site "https://www.chess.com"]

[Event "Titled Tuesday Blitz August 22 Early 2023"]
[White "Pax-Pramana"]
[Black "AndresDelgado77"]
[WhiteElo "2459"]
[BlackElo "2245"]
[Result "1-0"]
[Round "6"]
[TimeControl "180+1"]
[Date "2023.08.22"]
[WhiteClock "0:00:35"]
[BlackClock "0:00:00"]
[Board "164"]

1. e4 {[%clk 0:03:00]}  e6 {[%clk 0:02:59]} 2. d4 {[%clk 0:03:00]}  d5 {[%clk 0:02:59]} 3. Nc3 {[%clk 0:03:01]}  Nf6 {[%clk 0:02:58]} 4. Bg5 {[%clk 0:02:58]}  Bb4 {[%clk 0:02:57]} 5. e5 {[%clk 0:02:56]}  h6 {[%clk 0:02:57]} 6. Bc1 {[%clk 0:02:57]}  Ne4 {[%clk 0:02:56]} 7. Ne2 {[%clk 0:02:56]}  c5 {[%clk 0:02:48]} 8. a3 {[%clk 0:02:56]}  Qa5 {[%clk 0:02:37]} 9. axb4 {[%clk 0:02:46]}  Qxa1 {[%clk 0:02:36]} 10. Nb5 {[%clk 0:02:33]}  Na6 {[%clk 0:02:25]} 11. f3 {[%clk 0:02:27]}  Bd7 {[%clk 0:02:24]} 12. Nf4 {[%clk 0:02:12]}  Qa4 {[%clk 0:02:02]} 13. fxe4 {[%clk 0:02:01]}  Bxb5 {[%clk 0:02:01]} 14. b3 {[%clk 0:02:02]}  Qxb4+ {[%clk 0:01:49]} 15. Bd2 {[%clk 0:02:02]}  Qxd4 {[%clk 0:01:44]} 16. Bxb5+ {[%clk 0:02:03]}  Ke7 {[%clk 0:01:43]} 17. exd5 {[%clk 0:01:41]}  Qxe5+ {[%clk 0:01:42]} 18. Kf2 {[%clk 0:01:18]}  g5 {[%clk 0:01:36]} 19. Nd3 {[%clk 0:00:49]}  Qxd5 {[%clk 0:01:06]} 20. Re1 {[%clk 0:00:47]}  Nc7 {[%clk 0:00:49]} 21. Bc4 {[%clk 0:00:46]}  Qd4+ {[%clk 0:00:46]} 22. Be3 {[%clk 0:00:44]}  Qh4+ {[%clk 0:00:45]} 23. Kg1 {[%clk 0:00:44]}  b6 {[%clk 0:00:45]} 24. Ne5 {[%clk 0:00:38]}  Nd5 {[%clk 0:00:26]} 25. Bxd5 {[%clk 0:00:35]}  exd5 {[%clk 0:00:25]} 26. Ng6+ {[%clk 0:00:34]}  fxg6 {[%clk 0:00:22]} 27. Bxg5+ {[%clk 0:00:34]}  Kd6 {[%clk 0:00:00]} 28. Bxh4 {[%clk 0:00:35]} 1-0


[Site "https://www.chess.com"]

[Event "Titled Tuesday Blitz August 22 Early 2023"]
[White "KSho99"]
[Black "Issabayev, Dias"]
[BlackFideId "13703110"]
[WhiteElo "2243"]
[BlackElo "2455"]
[Result "0-1"]
[Round "6"]
[TimeControl "180+1"]
[Date "2023.08.22"]
[WhiteClock "0:01:26"]
[BlackClock "0:02:19"]
[Board "166"]

1. d4 {[%clk 0:02:33]}  g6 {[%clk 0:03:00]} 2. Nc3 {[%clk 0:02:33]}  Bg7 {[%clk 0:02:58]} 3. Bf4 {[%clk 0:02:33]}  d5 {[%clk 0:02:55]} 4. e3 {[%clk 0:02:32]}  a6 {[%clk 0:02:53]} 5. Nf3 {[%clk 0:02:31]}  Nf6 {[%clk 0:02:52]} 6. Be2 {[%clk 0:02:29]}  c5 {[%clk 0:02:52]} 7. dxc5 {[%clk 0:02:25]}  Qa5 {[%clk 0:02:50]} 8. O-O {[%clk 0:02:25]}  Qxc5 {[%clk 0:02:50]} 9. Rc1 {[%clk 0:02:17]}  O-O {[%clk 0:02:49]} 10. Na4 {[%clk 0:02:13]}  Qa5 {[%clk 0:02:49]} 11. Nc3 {[%clk 0:02:01]}  Nc6 {[%clk 0:02:46]} 12. a3 {[%clk 0:02:01]}  Bf5 {[%clk 0:02:44]} 13. h3 {[%clk 0:02:00]}  Rfd8 {[%clk 0:02:42]} 14. Ne5 {[%clk 0:02:00]}  Ne4 {[%clk 0:02:40]} 15. Nxe4 {[%clk 0:01:54]}  dxe4 {[%clk 0:02:36]} 16. Nxc6 {[%clk 0:01:53]}  bxc6 {[%clk 0:02:35]} 17. Qe1 {[%clk 0:01:52]}  Qxe1 {[%clk 0:02:36]} 18. Rfxe1 {[%clk 0:01:52]}  Bxb2 {[%clk 0:02:37]} 19. Rb1 {[%clk 0:01:52]}  Bxa3 {[%clk 0:02:36]} 20. Rb6 {[%clk 0:01:52]}  a5 {[%clk 0:02:33]} 21. Rxc6 {[%clk 0:01:51]}  a4 {[%clk 0:02:34]} 22. Ra1 {[%clk 0:01:46]}  Bb2 {[%clk 0:02:34]} 23. Ra2 {[%clk 0:01:46]}  a3 {[%clk 0:02:34]} 24. Bc4 {[%clk 0:01:45]}  Rdc8 {[%clk 0:02:29]} 25. Rxc8+ {[%clk 0:01:40]}  Rxc8 {[%clk 0:02:30]} 26. Bb3 {[%clk 0:01:41]}  Be6 {[%clk 0:02:28]} 27. Kh2 {[%clk 0:01:36]}  Rxc2 {[%clk 0:02:24]} 28. Bxe6 {[%clk 0:01:31]}  fxe6 {[%clk 0:02:23]} 29. Kg3 {[%clk 0:01:32]}  g5 {[%clk 0:02:20]} 30. Bb8 {[%clk 0:01:26]}  Be5+ {[%clk 0:02:19]} 0-1


[Site "https://www.chess.com"]

[Event "Titled Tuesday Blitz August 22 Early 2023"]
[White "Thiel, Thomas"]
[Black "Liu, Casper"]
[WhiteFideId "4615964"]
[BlackFideId "1454153"]
[WhiteElo "2241"]
[BlackElo "2454"]
[Result "0-1"]
[Round "6"]
[TimeControl "180+1"]
[Date "2023.08.22"]
[WhiteClock "0:00:00"]
[BlackClock "0:00:03"]
[Board "167"]

1. e4 {[%clk 0:03:00]}  c5 {[%clk 0:02:59]} 2. Nc3 {[%clk 0:02:59]}  a6 {[%clk 0:02:58]} 3. Nge2 {[%clk 0:02:56]}  Qa5 {[%clk 0:02:57]} 4. g3 {[%clk 0:02:55]}  h5 {[%clk 0:02:56]} 5. h4 {[%clk 0:02:51]}  Nh6 {[%clk 0:02:55]} 6. Bg2 {[%clk 0:02:50]}  Ng4 {[%clk 0:02:55]} 7. O-O {[%clk 0:02:46]}  g5 {[%clk 0:02:55]} 8. d3 {[%clk 0:02:35]}  gxh4 {[%clk 0:02:53]} 9. gxh4 {[%clk 0:02:34]}  Rg8 {[%clk 0:02:54]} 10. Ng3 {[%clk 0:02:32]}  Nc6 {[%clk 0:02:22]} 11. Bd2 {[%clk 0:02:27]}  Qc7 {[%clk 0:02:16]} 12. Nd5 {[%clk 0:02:26]}  Qd8 {[%clk 0:02:17]} 13. Bg5 {[%clk 0:02:02]}  f6 {[%clk 0:02:04]} 14. Nxh5 {[%clk 0:02:01]}  d6 {[%clk 0:01:48]} 15. f3 {[%clk 0:01:35]}  Nge5 {[%clk 0:01:15]} 16. Bf4 {[%clk 0:01:18]}  Bh3 {[%clk 0:01:11]} 17. Bg3 {[%clk 0:01:11]}  Bxg2 {[%clk 0:00:32]} 18. Kxg2 {[%clk 0:01:12]}  Bh6 {[%clk 0:00:31]} 19. f4 {[%clk 0:01:06]}  Ng4 {[%clk 0:00:17]} 20. f5 {[%clk 0:00:53]}  Nce5 {[%clk 0:00:04]} 21. Kh3 {[%clk 0:00:49]}  Kd7 {[%clk 0:00:04]} 22. Ndf4 {[%clk 0:00:47]}  Ne3 {[%clk 0:00:03]} 23. Qe1 {[%clk 0:00:34]}  Nxf1 {[%clk 0:00:04]} 24. Qxf1 {[%clk 0:00:32]}  Qe8 {[%clk 0:00:05]} 25. Qd1 {[%clk 0:00:20]}  Ng4 {[%clk 0:00:03]} 26. c4 {[%clk 0:00:19]}  Qf7 {[%clk 0:00:04]} 27. Qa4+ {[%clk 0:00:16]}  Kc7 {[%clk 0:00:04]} 28. Ne6+ {[%clk 0:00:13]}  Kb8 {[%clk 0:00:04]} 29. Qd7 {[%clk 0:00:00]}  Qxh5 {[%clk 0:00:03]} 0-1


[Site "https://www.chess.com"]

[Event "Titled Tuesday Blitz August 22 Early 2023"]
[White "Balint, Vilmos"]
[Black "Derichs, Roger"]
[WhiteFideId "718050"]
[BlackFideId "4630076"]
[WhiteElo "2233"]
[BlackElo "2454"]
[Result "1-0"]
[Round "6"]
[TimeControl "180+1"]
[Date "2023.08.22"]
[WhiteClock "0:01:09"]
[BlackClock "0:00:10"]
[Board "168"]

1. e4 {[%clk 0:02:38]}  d6 {[%clk 0:02:59]} 2. d4 {[%clk 0:02:38]}  Nf6 {[%clk 0:03:00]} 3. Nc3 {[%clk 0:02:39]}  e5 {[%clk 0:03:00]} 4. f3 {[%clk 0:02:40]}  Nbd7 {[%clk 0:02:59]} 5. Be3 {[%clk 0:02:39]}  c6 {[%clk 0:02:59]} 6. Qd2 {[%clk 0:02:39]}  h5 {[%clk 0:02:59]} 7. a4 {[%clk 0:02:38]}  Be7 {[%clk 0:02:54]} 8. Bc4 {[%clk 0:02:36]}  Qc7 {[%clk 0:02:54]} 9. Nge2 {[%clk 0:02:36]}  b6 {[%clk 0:02:54]} 10. O-O {[%clk 0:02:36]}  Bb7 {[%clk 0:02:53]} 11. Rfd1 {[%clk 0:02:36]}  a6 {[%clk 0:02:53]} 12. Bb3 {[%clk 0:02:36]}  O-O {[%clk 0:02:48]} 13. Bg5 {[%clk 0:02:32]}  b5 {[%clk 0:02:45]} 14. Ng3 {[%clk 0:02:31]}  g6 {[%clk 0:02:44]} 15. Nce2 {[%clk 0:02:24]}  Rfe8 {[%clk 0:02:42]} 16. Bh4 {[%clk 0:02:18]}  d5 {[%clk 0:02:15]} 17. Qh6 {[%clk 0:02:17]}  Bf8 {[%clk 0:02:12]} 18. Qg5 {[%clk 0:02:17]}  Nh7 {[%clk 0:02:07]} 19. Qe3 {[%clk 0:02:16]}  exd4 {[%clk 0:02:00]} 20. Nxd4 {[%clk 0:02:15]}  c5 {[%clk 0:01:57]} 21. Nde2 {[%clk 0:02:08]}  c4 {[%clk 0:01:55]} 22. Ba2 {[%clk 0:02:08]}  Bc5 {[%clk 0:01:50]} 23. Nd4 {[%clk 0:02:07]}  dxe4 {[%clk 0:01:37]} 24. Nxe4 {[%clk 0:02:06]}  Bxe4 {[%clk 0:01:26]} 25. fxe4 {[%clk 0:02:05]}  Qe5 {[%clk 0:01:24]} 26. Bf2 {[%clk 0:01:50]}  Qxe4 {[%clk 0:01:22]} 27. Qxe4 {[%clk 0:01:50]}  Rxe4 {[%clk 0:01:23]} 28. axb5 {[%clk 0:01:48]}  axb5 {[%clk 0:01:23]} 29. Nxb5 {[%clk 0:01:48]}  Bxf2+ {[%clk 0:01:18]} 30. Kxf2 {[%clk 0:01:49]}  Ne5 {[%clk 0:01:11]} 31. Nd6 {[%clk 0:01:48]}  Rf4+ {[%clk 0:01:01]} 32. Kg1 {[%clk 0:01:48]}  Nf6 {[%clk 0:00:58]} 33. Rf1 {[%clk 0:01:34]}  Rxf1+ {[%clk 0:00:53]} 34. Kxf1 {[%clk 0:01:33]}  Kg7 {[%clk 0:00:41]} 35. b4 {[%clk 0:01:33]}  Nc6 {[%clk 0:00:34]} 36. b5 {[%clk 0:01:32]}  Nd4 {[%clk 0:00:35]} 37. b6 {[%clk 0:01:31]}  Nxc2 {[%clk 0:00:33]} 38. b7 {[%clk 0:01:32]}  Rb8 {[%clk 0:00:34]} 39. Rc1 {[%clk 0:01:27]}  Nb4 {[%clk 0:00:30]} 40. Bxc4 {[%clk 0:01:27]}  Nc6 {[%clk 0:00:27]} 41. Bxf7 {[%clk 0:01:25]}  Na5 {[%clk 0:00:26]} 42. Rb1 {[%clk 0:01:17]}  Kf8 {[%clk 0:00:22]} 43. Be6 {[%clk 0:01:15]}  Ke7 {[%clk 0:00:19]} 44. Rb6 {[%clk 0:01:15]}  Nd7 {[%clk 0:00:15]} 45. Nc8+ {[%clk 0:01:11]}  Kd8 {[%clk 0:00:15]} 46. Rd6 {[%clk 0:01:11]}  Kc7 {[%clk 0:00:15]} 47. Rxd7+ {[%clk 0:01:11]}  Kc6 {[%clk 0:00:15]} 48. Rg7 {[%clk 0:01:08]}  Nxb7 {[%clk 0:00:14]} 49. Bd5+ {[%clk 0:01:09]}  Kc5 {[%clk 0:00:10]} 50. Bxb7 {[%clk 0:01:09]} 1-0


[Site "https://www.chess.com"]

[Event "Titled Tuesday Blitz August 22 Early 2023"]
[White "Ljukin, Sergei"]
[Black "parintele_chess"]
[WhiteFideId "14102200"]
[WhiteElo "2452"]
[BlackElo "2230"]
[Result "1-0"]
[Round "6"]
[TimeControl "180+1"]
[Date "2023.08.22"]
[WhiteClock "0:00:13"]
[BlackClock "0:00:15"]
[Board "169"]

1. e4 {[%clk 0:02:48]}  e5 {[%clk 0:02:59]} 2. Nf3 {[%clk 0:02:48]}  Nc6 {[%clk 0:02:59]} 3. Bb5 {[%clk 0:02:48]}  a6 {[%clk 0:02:59]} 4. Ba4 {[%clk 0:02:48]}  Nf6 {[%clk 0:02:59]} 5. Qe2 {[%clk 0:02:48]}  b5 {[%clk 0:02:57]} 6. Bb3 {[%clk 0:02:48]}  Bc5 {[%clk 0:02:57]} 7. c3 {[%clk 0:02:48]}  O-O {[%clk 0:02:56]} 8. d3 {[%clk 0:02:48]}  h6 {[%clk 0:02:52]} 9. Be3 {[%clk 0:02:47]}  Bxe3 {[%clk 0:02:51]} 10. fxe3 {[%clk 0:02:48]}  d5 {[%clk 0:02:43]} 11. exd5 {[%clk 0:02:47]}  Nxd5 {[%clk 0:02:44]} 12. Nbd2 {[%clk 0:02:47]}  Na5 {[%clk 0:02:39]} 13. Bc2 {[%clk 0:02:46]}  c5 {[%clk 0:02:34]} 14. O-O {[%clk 0:02:42]}  Nc6 {[%clk 0:02:31]} 15. a4 {[%clk 0:02:33]}  Be6 {[%clk 0:02:11]} 16. d4 {[%clk 0:01:57]}  cxd4 {[%clk 0:01:46]} 17. exd4 {[%clk 0:01:54]}  exd4 {[%clk 0:01:29]} 18. Qe4 {[%clk 0:01:51]}  g6 {[%clk 0:01:23]} 19. Nxd4 {[%clk 0:01:51]}  Nxd4 {[%clk 0:01:22]} 20. Qxd4 {[%clk 0:01:51]}  Ne7 {[%clk 0:01:10]} 21. Qf4 {[%clk 0:01:38]}  Nf5 {[%clk 0:00:26]} 22. Bxf5 {[%clk 0:01:23]}  Bxf5 {[%clk 0:00:27]} 23. Qxh6 {[%clk 0:01:24]}  Qb6+ {[%clk 0:00:22]} 24. Kh1 {[%clk 0:01:23]}  bxa4 {[%clk 0:00:22]} 25. Nf3 {[%clk 0:01:22]}  Qf6 {[%clk 0:00:15]} 26. Rxa4 {[%clk 0:01:14]}  Qg7 {[%clk 0:00:13]} 27. Qxg7+ {[%clk 0:00:49]}  Kxg7 {[%clk 0:00:14]} 28. Nd4 {[%clk 0:00:49]}  Bd3 {[%clk 0:00:14]} 29. Rd1 {[%clk 0:00:38]}  Bb5 {[%clk 0:00:13]} 30. Ra5 {[%clk 0:00:38]}  Rfb8 {[%clk 0:00:07]} 31. b3 {[%clk 0:00:26]}  Be8 {[%clk 0:00:07]} 32. Kg1 {[%clk 0:00:20]}  Rc8 {[%clk 0:00:07]} 33. Rd3 {[%clk 0:00:19]}  Kf6 {[%clk 0:00:03]} 34. Kf2 {[%clk 0:00:19]}  Bc6 {[%clk 0:00:02]} 35. g3 {[%clk 0:00:16]}  Bb7 {[%clk 0:00:01]} 36. Ke3 {[%clk 0:00:16]}  Re8+ {[%clk 0:00:01]} 37. Kd2 {[%clk 0:00:15]}  Red8 {[%clk 0:00:02]} 38. Rc5 {[%clk 0:00:11]}  Kg7 {[%clk 0:00:03]} 39. Rc7 {[%clk 0:00:10]}  Bd5 {[%clk 0:00:03]} 40. c4 {[%clk 0:00:09]}  Be4 {[%clk 0:00:03]} 41. Ne6+ {[%clk 0:00:09]}  Kf6 {[%clk 0:00:03]} 42. Rxd8 {[%clk 0:00:09]}  Kxe6 {[%clk 0:00:02]} 43. Rxa8 {[%clk 0:00:09]}  Bxa8 {[%clk 0:00:03]} 44. Ra7 {[%clk 0:00:09]}  Bg2 {[%clk 0:00:03]} 45. Rxa6+ {[%clk 0:00:09]}  Ke5 {[%clk 0:00:04]} 46. Ra7 {[%clk 0:00:08]}  f5 {[%clk 0:00:04]} 47. Ke3 {[%clk 0:00:08]}  g5 {[%clk 0:00:04]} 48. Ra5+ {[%clk 0:00:09]}  Kf6 {[%clk 0:00:04]} 49. b4 {[%clk 0:00:09]}  Bf1 {[%clk 0:00:05]} 50. h4 {[%clk 0:00:09]}  f4+ {[%clk 0:00:05]} 51. gxf4 {[%clk 0:00:09]}  gxh4 {[%clk 0:00:05]} 52. c5 {[%clk 0:00:09]}  h3 {[%clk 0:00:06]} 53. Ra2 {[%clk 0:00:09]}  Bg2 {[%clk 0:00:06]} 54. Kf2 {[%clk 0:00:09]}  h2 {[%clk 0:00:06]} 55. Kxg2 {[%clk 0:00:09]}  h1=Q+ {[%clk 0:00:07]} 56. Kxh1 {[%clk 0:00:10]}  Kf5 {[%clk 0:00:08]} 57. Rd2 {[%clk 0:00:09]}  Kxf4 {[%clk 0:00:09]} 58. c6 {[%clk 0:00:10]}  Ke5 {[%clk 0:00:10]} 59. c7 {[%clk 0:00:10]}  Ke4 {[%clk 0:00:11]} 60. c8=Q {[%clk 0:00:10]}  Ke3 {[%clk 0:00:12]} 61. Qc3+ {[%clk 0:00:11]}  Ke4 {[%clk 0:00:12]} 62. Rd4+ {[%clk 0:00:11]}  Ke5 {[%clk 0:00:13]} 63. Qc5+ {[%clk 0:00:11]}  Ke6 {[%clk 0:00:13]} 64. Rd6+ {[%clk 0:00:12]}  Ke7 {[%clk 0:00:14]} 65. Qc7+ {[%clk 0:00:12]}  Ke8 {[%clk 0:00:15]} 66. Rd8# {[%clk 0:00:13]} 1-0


[Site "https://www.chess.com"]

[Event "Titled Tuesday Blitz August 22 Early 2023"]
[White "Eggleston, Thomas A"]
[Black "Kriti Mayur Patel"]
[WhiteFideId "412139"]
[BlackFideId "35061780"]
[WhiteElo "2429"]
[BlackElo "2096"]
[Result "1-0"]
[Round "6"]
[TimeControl "180+1"]
[Date "2023.08.22"]
[WhiteClock "0:00:44"]
[BlackClock "0:00:15"]
[Board "174"]

1. d4 {[%clk 0:03:00]}  d5 {[%clk 0:03:00]} 2. Nf3 {[%clk 0:03:00]}  Nf6 {[%clk 0:03:00]} 3. Nbd2 {[%clk 0:02:59]}  e6 {[%clk 0:02:59]} 4. e3 {[%clk 0:02:57]}  c5 {[%clk 0:02:59]} 5. c3 {[%clk 0:02:56]}  c4 {[%clk 0:02:59]} 6. b3 {[%clk 0:02:55]}  b5 {[%clk 0:02:58]} 7. a4 {[%clk 0:02:55]}  Qa5 {[%clk 0:02:47]} 8. Bb2 {[%clk 0:02:47]}  b4 {[%clk 0:02:14]} 9. cxb4 {[%clk 0:02:42]}  Bxb4 {[%clk 0:02:14]} 10. bxc4 {[%clk 0:02:30]}  Ne4 {[%clk 0:02:08]} 11. cxd5 {[%clk 0:02:30]}  exd5 {[%clk 0:02:06]} 12. Bb5+ {[%clk 0:02:26]}  Ke7 {[%clk 0:02:02]} 13. Ba3 {[%clk 0:02:19]}  Bxa3 {[%clk 0:01:50]} 14. Rxa3 {[%clk 0:02:19]}  Bg4 {[%clk 0:01:42]} 15. O-O {[%clk 0:02:08]}  Nc3 {[%clk 0:01:30]} 16. Qb3 {[%clk 0:02:03]}  Nd7 {[%clk 0:01:13]} 17. Qxc3 {[%clk 0:01:54]}  Qb6 {[%clk 0:01:03]} 18. Bxd7 {[%clk 0:01:50]}  Bxd7 {[%clk 0:01:00]} 19. Rb1 {[%clk 0:01:49]}  Qf6 {[%clk 0:00:54]} 20. Ne5 {[%clk 0:01:45]}  Rhd8 {[%clk 0:00:49]} 21. Rb7 {[%clk 0:01:42]}  Rac8 {[%clk 0:00:32]} 22. Qb4+ {[%clk 0:01:22]}  Ke8 {[%clk 0:00:29]} 23. Rc3 {[%clk 0:01:16]}  Rxc3 {[%clk 0:00:20]} 24. Qxc3 {[%clk 0:01:16]}  Rc8 {[%clk 0:00:21]} 25. Nxd7 {[%clk 0:01:08]}  Rxc3 {[%clk 0:00:20]} 26. Nxf6+ {[%clk 0:01:08]}  gxf6 {[%clk 0:00:21]} 27. Rxa7 {[%clk 0:01:03]}  Rc2 {[%clk 0:00:19]} 28. Nf1 {[%clk 0:01:03]}  Ra2 {[%clk 0:00:19]} 29. a5 {[%clk 0:01:02]}  Kf8 {[%clk 0:00:20]} 30. a6 {[%clk 0:01:02]}  Kg7 {[%clk 0:00:21]} 31. g3 {[%clk 0:01:00]}  Ra1 {[%clk 0:00:21]} 32. Kg2 {[%clk 0:01:00]}  Kg6 {[%clk 0:00:22]} 33. g4 {[%clk 0:01:00]}  f5 {[%clk 0:00:23]} 34. gxf5+ {[%clk 0:01:00]}  Kxf5 {[%clk 0:00:24]} 35. Ng3+ {[%clk 0:01:00]}  Kg6 {[%clk 0:00:25]} 36. Kf3 {[%clk 0:00:59]}  f6 {[%clk 0:00:26]} 37. Kf4 {[%clk 0:00:59]}  h6 {[%clk 0:00:26]} 38. Nf5 {[%clk 0:00:59]}  h5 {[%clk 0:00:26]} 39. Ne7+ {[%clk 0:00:52]}  Kh7 {[%clk 0:00:19]} 40. Nxd5+ {[%clk 0:00:51]}  Kh6 {[%clk 0:00:18]} 41. Kf5 {[%clk 0:00:48]}  h4 {[%clk 0:00:17]} 42. Nxf6 {[%clk 0:00:47]}  Rxa6 {[%clk 0:00:15]} 43. Rh7# {[%clk 0:00:44]} 1-0


[Site "https://www.chess.com"]

[Event "Titled Tuesday Blitz August 22 Early 2023"]
[White "Ribeiro, Matheus Mendes Domingues"]
[Black "Labussiere, Yago"]
[WhiteFideId "324226923"]
[BlackFideId "2186969"]
[WhiteElo "2553"]
[BlackElo "2380"]
[Result "1-0"]
[Round "6"]
[TimeControl "180+1"]
[Date "2023.08.22"]
[WhiteClock "0:00:17"]
[BlackClock "0:00:05"]
[Board "176"]

1. c4 {[%clk 0:03:00]}  e5 {[%clk 0:02:54]} 2. Nc3 {[%clk 0:03:00]}  Nc6 {[%clk 0:02:52]} 3. Nf3 {[%clk 0:02:59]}  g6 {[%clk 0:02:53]} 4. d4 {[%clk 0:02:53]}  d6 {[%clk 0:02:49]} 5. dxe5 {[%clk 0:02:53]}  Nxe5 {[%clk 0:02:48]} 6. Nxe5 {[%clk 0:02:53]}  dxe5 {[%clk 0:02:49]} 7. Qxd8+ {[%clk 0:02:53]}  Kxd8 {[%clk 0:02:50]} 8. Bd2 {[%clk 0:02:41]}  c6 {[%clk 0:02:46]} 9. O-O-O {[%clk 0:02:40]}  Kc7 {[%clk 0:02:45]} 10. g3 {[%clk 0:02:40]}  Be6 {[%clk 0:02:44]} 11. b3 {[%clk 0:02:39]}  Rd8 {[%clk 0:02:19]} 12. Bg2 {[%clk 0:02:37]}  Bc5 {[%clk 0:02:08]} 13. Ne4 {[%clk 0:02:16]}  Ba3+ {[%clk 0:02:06]} 14. Kc2 {[%clk 0:02:16]}  Bf5 {[%clk 0:02:03]} 15. Bc3 {[%clk 0:01:55]}  Re8 {[%clk 0:01:49]} 16. b4 {[%clk 0:01:41]}  Nf6 {[%clk 0:01:42]} 17. f3 {[%clk 0:01:40]}  a5 {[%clk 0:01:22]} 18. Kb3 {[%clk 0:00:46]}  Nxe4 {[%clk 0:01:15]} 19. fxe4 {[%clk 0:00:42]}  axb4 {[%clk 0:00:48]} 20. exf5 {[%clk 0:00:41]}  bxc3 {[%clk 0:00:48]} 21. Kxa3 {[%clk 0:00:41]}  gxf5 {[%clk 0:00:46]} 22. Kb3 {[%clk 0:00:40]}  e4 {[%clk 0:00:31]} 23. Rhf1 {[%clk 0:00:38]}  Re5 {[%clk 0:00:31]} 24. Bh3 {[%clk 0:00:32]}  Rhe8 {[%clk 0:00:17]} 25. Rxf5 {[%clk 0:00:32]}  Rxf5 {[%clk 0:00:16]} 26. Bxf5 {[%clk 0:00:33]}  h6 {[%clk 0:00:16]} 27. Rf1 {[%clk 0:00:33]}  Kd6 {[%clk 0:00:11]} 28. Rf4 {[%clk 0:00:31]}  e3 {[%clk 0:00:11]} 29. Re4 {[%clk 0:00:28]}  Rg8 {[%clk 0:00:06]} 30. Rxe3 {[%clk 0:00:28]}  Kc5 {[%clk 0:00:07]} 31. Kxc3 {[%clk 0:00:22]}  Ra8 {[%clk 0:00:07]} 32. Kb3 {[%clk 0:00:17]}  Rd8 {[%clk 0:00:05]} 33. Bd3 {[%clk 0:00:17]} 1-0


[Site "https://www.chess.com"]